{"text_format":"1","workbook":"xlsx","n_sheets":7,"sheets":["入力例","従事者情報入力シート","設定シート","計算結果シート_C票","エラーチェック (性別有)","集計シート","エラーチェック"],"not_rendered":{"charts":0,"images":3,"macros":1,"external_links":0,"defined_names":1,"comments":3,"pivot_tables":0},"unopened":[],"bounds":{"document_bytes":16777216,"sheet_cells":100000,"rows_first":2000,"rows_last":500,"rows_between":2000,"halvings":0,"cell_chars":16384,"cell_head_chars":4096},"cells_cut":0,"cells_raw":0,"read":"whole","date_system":"1900"}

{"sheet":"入力例","index":0,"n_rows":10,"n_cols":7,"rows_kept":10,"cut":false,"hidden":false,"merged":[]}
["■入力例　　★常勤換算の計算方法は、記入の手引きを参照してください。"]
[]
["　","●所定労働時間４０時間"]
[null,"●従事者","Aさん","施設長                                     ",null,null,"週４０時間勤務"]
[null,null,"Bさん","理学療法士                               ",null,null,"週２０時間勤務"]
[null,null,"Cさん","児童厚生員                               ",null,null,"月１０時間勤務"]
[null,null,"Dさん","栄養士と調理員の兼務　　　　　　 　　 ",null,null,"週４０時間勤務（栄養士１０時間／調理員３０時間）"]
[null,null,"Eさん","保育士と事務員の兼務　　　　　　　  　",null,null,"週３５時間勤務（保育士１５時間／事務員２０時間）"]
[null,null,"Fさん","看護師（併設施設との兼務）     　  ",null,null,"週４０時間勤務（９月末日の在所者：当施設４０名／併設施設２５名）"]
[null,null,"Gさん","医師（併設施設との兼務）  　        ",null,null,"週３０時間勤務（９月末日の在所者：当施設４０名／併設施設１０名）"]

{"sheet":"従事者情報入力シート","index":1,"n_rows":13,"n_cols":12,"rows_kept":13,"cut":false,"hidden":false,"merged":[[11,1,12,1],[11,2,12,2],[11,3,12,3],[11,4,12,4],[11,5,12,5],[3,1,4,10],[6,0,6,1],[6,2,6,3],[6,7,6,8],[8,0,8,1],[11,6,12,6],[11,7,12,7],[11,8,11,9],[11,10,12,10],[11,11,12,11]]}
[]
[null,"「社会福祉施設等調査」　常勤換算従事者数の計算補助ツール",null,null,null,null,null,null,null,null,"※入力する際は、操作手順を非表示にしてください。"]
[]
[]
[]
[]
["調査票種",null,"児童福祉施設等調査票",null,null,"サービス種別","サービス種別","-"]
[]
["①施設・事業所の\n１週間の所定労働時間",null,null,"時間"]
[]
[null,"※任意","※必須","※必須","※必須",null,null,null,null,null,null,"入力不可"]
[null,"②自由記載\n（従事者名等入力してください）","③勤務形態\n（常勤専従／常勤兼務／非常勤）","④職種","性別","⑤常勤専従\r\n人数","⑥この施設・\r\n事業所での､\r\n当該職種の\r\n1 週間の勤務時間","⑦月数回勤務の場合､\r\nこの施設・事業所での\r\n当該職種の\r\n1 か月の勤務時間","⑧勤務時間で分けられない場合､\r\n利用人数で按分",null,"⑨勤務時間でも利用人数でも分けられない場合､この施設・事業所の当該職種の換算数を直接入力","エラー"]
[null,null,null,null,null,null,null,null,"この施設・事業所の\n利用人数","兼務する施設・\n事業所の利用人数"]

{"sheet":"設定シート","index":2,"n_rows":26,"n_cols":26,"rows_kept":26,"cut":false,"hidden":true,"merged":[[2,12,2,16],[2,17,2,21],[3,13,3,14],[3,15,3,16],[3,18,3,19],[3,20,3,21]]}
["設定名","票種","性別選択有無","サービス表示有無","デフォルト種別",null,"調査票種名"]
["設定値","C",false,false,"-",null,"児童福祉施設等調査票",null,null,null,null,null,null,null,null,null,null,null,"※性別の選択肢がある調査票のみ"]
[null,null,null,null,null,null,null,null,null,null,null,null,"男",null,null,null,null,"女"]
["ドロップダウンアイテム(基本)",null,null,null,null,null,"ドロップダウンアイテム(職種 - 資格)　+ 集計時の設定情報",null,null,null,null,null,"専従","常勤兼務",null,"非常勤",null,"専従","常勤兼務",null,"非常勤",null,null,"リストボックスに表示する職種一覧（非表示を除く）"]
["区分番号","区分名","選択肢","サービス種別","補足／シート名",null,"票種","サービス種別","職種-資格","集計用職種","集計用資格","集計用資格2","人数","人数","換算数","人数","換算数","人数","人数","換算数","人数","換算数",null,"票種","サービス種別","職種-資格"]
[1,"勤務形態","常勤専従",null,"C列",null,"C票","-","1施設長-該当資格なし","1施設長","該当資格なし",null,"C6","C7","C8","C9","C10",null,null,null,null,null,null,"C票","-","1施設長-該当資格なし"]
[1,"勤務形態","常勤兼務",null,"C列",null,"C票","-","1施設長-社会福祉士","1施設長","社会福祉士",null,"D6","D7","D8","D9","D10",null,null,null,null,null,null,"C票","-","1施設長-社会福祉士"]
[1,"勤務形態","非常勤",null,"C列",null,"C票","-","2職業・作業指導員","2職業・作業指導員",null,null,"E6","E7","E8","E9","E10",null,null,null,null,null,null,"C票","-","2職業・作業指導員"]
[2,"性別","男",null,"E列",null,"C票","-","3生活・児童指導員、児童自立支援専門員-該当資格なし","3生活・児童指導員、児童自立支援専門員","該当資格なし",null,"F6","F7","F8","F9","F10",null,null,null,null,null,null,"C票","-","3生活・児童指導員、児童自立支援専門員-該当資格なし"]
[2,"性別","女",null,"E列",null,"C票","-","3生活・児童指導員、児童自立支援専門員-社会福祉士","3生活・児童指導員、児童自立支援専門員","社会福祉士",null,"G6","G7","G8","G9","G10",null,null,null,null,null,null,"C票","-","3生活・児童指導員、児童自立支援専門員-社会福祉士"]
[9,"サービス種別","-","-","計算結果シート_C票",null,"C票","-","4児童厚生員","4児童厚生員",null,null,"H6","H7","H8","H9","H10",null,null,null,null,null,null,"C票","-","4児童厚生員"]
[null,null,null,null,null,null,"C票","-","5保育士","5保育士",null,null,"I6","I7","I8","I9","I10",null,null,null,null,null,null,"C票","-","5保育士"]
[null,null,null,null,null,null,"C票","-","6児童生活支援員-該当資格なし","6児童生活支援員","該当資格なし",null,"J6","J7","J8","J9","J10",null,null,null,null,null,null,"C票","-","6児童生活支援員-該当資格なし"]
[null,null,null,null,null,null,"C票","-","6児童生活支援員-社会福祉士","6児童生活支援員","社会福祉士",null,"K6","K7","K8","K9","K10",null,null,null,null,null,null,"C票","-","6児童生活支援員-社会福祉士"]
[null,null,null,null,null,null,"C票","-","7母子支援員","7母子支援員",null,null,"L6","L7","L8","L9","L10",null,null,null,null,null,null,"C票","-","7母子支援員"]
[null,null,null,null,null,null,"C票","-","8医師","8医師",null,null,"C14","C15","C16","C17","C18",null,null,null,null,null,null,"C票","-","8医師"]
[null,null,null,null,null,null,"C票","-","9セラピスト-理学療法士","9セラピスト","理学療法士",null,"D14","D15","D16","D17","D18",null,null,null,null,null,null,"C票","-","9セラピスト-理学療法士"]
[null,null,null,null,null,null,"C票","-","10セラピスト-作業療法士","10セラピスト","作業療法士",null,"E14","E15","E16","E17","E18",null,null,null,null,null,null,"C票","-","10セラピスト-作業療法士"]
[null,null,null,null,null,null,"C票","-","11セラピスト-その他の療法員","11セラピスト","その他の療法員",null,"F14","F15","F16","F17","F18",null,null,null,null,null,null,"C票","-","11セラピスト-その他の療法員"]
[null,null,null,null,null,null,"C票","-","12保健師・助産師・看護師","12保健師助産師看護師",null,null,"G14","G15","G16","G17","G18",null,null,null,null,null,null,"C票","-","12保健師・助産師・看護師"]
[null,null,null,null,null,null,"C票","-","13栄養士-該当資格なし","13栄養士","該当資格なし",null,"H14","H15","H16","H17","H18",null,null,null,null,null,null,"C票","-","13栄養士-該当資格なし"]
[null,null,null,null,null,null,"C票","-","13栄養士-管理栄養士","13栄養士","管理栄養士",null,"I14","I15","I16","I17","I18",null,null,null,null,null,null,"C票","-","13栄養士-管理栄養士"]
[null,null,null,null,null,null,"C票","-","14調理員","14調理員",null,null,"J14","J15","J16","J17","J18",null,null,null,null,null,null,"C票","-","14調理員"]
[null,null,null,null,null,null,"C票","-","15事務員","15事務員",null,null,"K14","K15","K16","K17","K18",null,null,null,null,null,null,"C票","-","15事務員"]
[null,null,null,null,null,null,"C票","-","16児童発達支援管理責任者","16児童発達支援管理責任者",null,null,"L14","L15","L16","L17","L18",null,null,null,null,null,null,"C票","-","16児童発達支援管理責任者"]
[null,null,null,null,null,null,"C票","-","17その他の職員","17その他の職員",null,null,"M14","M15","M16","M17","M18",null,null,null,null,null,null,"C票","-","17その他の職員"]

{"sheet":"計算結果シート_C票","index":3,"n_rows":18,"n_cols":13,"rows_kept":18,"cut":false,"hidden":false,"merged":[[13,0,13,1],[14,0,14,1],[16,0,16,1],[11,6,12,6],[3,8,4,8],[11,0,12,1],[3,5,4,5],[3,0,4,1],[3,2,4,2],[3,4,4,4],[5,0,5,1],[6,0,6,1],[8,0,8,1],[11,2,12,2],[11,3,11,5],[11,11,12,11],[11,12,12,12],[3,9,4,9],[3,7,4,7],[3,11,4,11],[11,7,12,7],[11,9,12,9],[11,10,12,10]]}
["●計算結果シート　C票"]
[null,"※この内容を調査票に転記してください。"]
[]
[null,null,"１　施設長",null,"２　職業・作業\n     指導員","３　生活・児童\n　　 指導員、\n　　 児童自立\n     支援専門員",null,"4　児童厚生員","５　保育士","６　児童生活\n     支援員",null,"７　母子支援員"]
[null,null,null,"1のうち\n社会福祉士",null,null,"３のうち \n社会福祉士",null,null,null,"６のうち\n社会福祉士"]
["常勤専従"]
["常勤兼務"]
[null,"常勤兼務の換算数"]
["非常勤"]
[null,"非常勤の換算数"]
[]
[null,null,"８　医師","セラピスト",null,null,"12　保健師\n　　　助産師\n　　  看護師","13　栄養士",null,"14　調理員","15　事務員","16　児童発達\n      支援管理 \n      責任者","17　その他の\n　   職員"]
[null,null,null,"9　理学療法士","10　作業療法士","11　その他の\n      療法員",null,null,"13のうち\n管理栄養士"]
["常勤専従"]
["常勤兼務"]
[null,"常勤兼務の換算数"]
["非常勤"]
[null,"非常勤の換算数"]

{"sheet":"エラーチェック (性別有)","index":4,"n_rows":47,"n_cols":16,"rows_kept":47,"cut":false,"hidden":true,"merged":[]}
["2024.5.14","性別有の場合、項目番号がずれるため、エラーメッセージもそれに対応したもの（２０２１年度より採用）"]
[null,"勤務時間①-④の入力値は①＞②＞③＞④　※チェック時に優先度の高い有効値がある場合は、それより低い優先度の値のチェックは不要とする"]
[]
["エラーコード一覧",null,null,"エラーチェック　入力規則"]
["MSGCD","エラー表示メッセージ",null,"番号","項目","対象列\nセル","チェック種類","入力値種類","スタイル","チェック内容","MSGCD","エラー表示メッセージ","表示場所","集計結果","備考","確認"]
["MSG_CHK_ERR_K(1)","リストから選択してください",null,1,"サービス種別","Ｈ7","入力規則","リスト","停止","選択肢以外","MSG_CHK_ERR_K(1)",{"$f":"IF(ISERROR(VLOOKUP(K6,$A$6:$B$38,2,0))=TRUE,\"\",VLOOKUP(K6,$A$6:$B$38,2,0))","v":"リストから選択してください"},"メッセージボックス","メッセージボックスにエラーが表示される場合→入力自体不可\nL列にエラー表示→該当行は集計結果から除外","値をペーストされた場合は、L列 -エラー該当行にメッセージ表示","メッセージ確認"]
["MSG_CHK_ERR_K(2)","1週間の所定労働時間は32～44の数値で入力してください",null,2,"１週間の所定労働時間","C9","入力規則","小数点数","停止","≠小数\n範囲：1-44","MSG_CHK_ERR_K(2)","1週間の所定労働時間は32～44の数値で入力してください","メッセージボックス","メッセージボックスにエラーが表示される場合→入力自体不可\nL列にエラー表示→該当行は集計結果から除外","値をペーストされた場合は、L列 -エラー該当行にメッセージ表示","メッセージ確認"]
["MSG_CHK_ERR_K(3)","１週間の勤務時間は1～44の数値で入力してください",null,3,"勤務形態","C列","入力規則","リスト","停止","選択肢以外","MSG_CHK_ERR_K(9)","勤務形態はリストから選択してください","メッセージボックス","メッセージボックスにエラーが表示される場合→入力自体不可\nL列にエラー表示→該当行は集計結果から除外","値をペーストされた場合は、L列 -エラー該当行にメッセージ表示","メッセージ確認"]
["MSG_CHK_ERR_K(4)","人数は0～99999の整数で入力してください",null,4,"職種","D列","入力規則","リスト","停止","選択肢以外","MSG_CHK_ERR_P(7)","職種はリストから選択してください","メッセージボックス","メッセージボックスにエラーが表示される場合→入力自体不可\nL列にエラー表示→該当行は集計結果から除外","値をペーストされた場合は、L列 -エラー該当行にメッセージ表示","メッセージ確認"]
["MSG_CHK_ERR_K(5)","１職種あたりの換算数は0.1～1.0の数値で入力してください",null,5,"性別","E列","入力規則","リスト","停止","未記入","MSG_CHK_ERR_K(8)","性別はリストから選択してください","メッセージボックス","メッセージボックスにエラーが表示される場合→入力自体不可\nL列にエラー表示→該当行は集計結果から除外","値をペーストされた場合は、L列 -エラー該当行にメッセージ表示","メッセージ確認"]
["MSG_CHK_ERR_K(6)","1か月の勤務時間は1～176の数値で入力してください",null,6,"⑤常勤専従人数","Ｆ列","入力規則","整数","停止","≠整数\n範囲：1～99999","MSG_CHK_ERR_K(7)","人数は1～99999の整数で入力してください","メッセージボックス","メッセージボックスにエラーが表示される場合→入力自体不可\nL列にエラー表示→該当行は集計結果から除外","値をペーストされた場合は、L列 -エラー該当行にメッセージ表示","メッセージ確認"]
["MSG_CHK_ERR_K(7)","人数は1～99999の整数で入力してください",null,7,"⑥この施設での１週間の勤務時間","G列","入力規則","小数点数","停止","≠小数\n範囲：1-44","MSG_CHK_ERR_K(3)","１週間の勤務時間は1～44の数値で入力してください","メッセージボックス","メッセージボックスにエラーが表示される場合→入力自体不可\nL列にエラー表示→該当行は集計結果から除外","所定労働時間とのチェックはプログラムで対応\n値をペーストされた場合は、L列 -エラー該当行にメッセージ表示","メッセージ確認"]
["MSG_CHK_ERR_K(8)","性別はリストから選択してください",null,8,"⑦1か月に数回の勤務の場合の１か月の勤務時間","H列","入力規則","小数点数","停止","≠小数\n範囲：1-176","MSG_CHK_ERR_K(6)","1か月の勤務時間は1～176の数値で入力してください","メッセージボックス","メッセージボックスにエラーが表示される場合→入力自体不可\nL列にエラー表示→該当行は集計結果から除外","所定労働時間とのチェックはプログラムで対応\n値をペーストされた場合は、L列 -エラー該当行にメッセージ表示","メッセージ確認"]
["MSG_CHK_ERR_K(9)","勤務形態はリストから選択してください",null,9,"⑧勤務時間が分けられない場合","I列・J列","入力規則","整数","停止","≠整数\n範囲：0～99999","MSG_CHK_ERR_K(4)","人数は0～99999の整数で入力してください","メッセージボックス","メッセージボックスにエラーが表示される場合→入力自体不可\nL列にエラー表示→該当行は集計結果から除外","整数のみ 介護（I、J列）、福祉（I列）\n値をペーストされた場合は、L列 -エラー該当行にメッセージ表示","メッセージ確認"]
[null,null,null,10,"⑧勤務時間が分けられない場合","I列","入力規則","整数","停止","≠整数\n範囲：1～99999","MSG_CHK_ERR_K(7)","人数は1～99999の整数で入力してください","メッセージボックス","メッセージボックスにエラーが表示される場合→入力自体不可\nL列にエラー表示→該当行は集計結果から除外","整数のみ 福祉\n値をペーストされた場合は、L列 -エラー該当行にメッセージ表示","メッセージ確認"]
[null,null,null,11,"⑨当該職種の換算数","K列","入力規則","小数点数","停止","＞１．０\n範囲：0.1～1","MSG_CHK_ERR_K(5)","１職種あたりの換算数は0.1～1.0の数値で入力してください","メッセージボックス","メッセージボックスにエラーが表示される場合→入力自体不可\nL列にエラー表示→該当行は集計結果から除外","値をペーストされた場合は、L列 -エラー該当行にメッセージ表示","メッセージ確認"]
["MSG_CHK_ERR_P(1)","エラーが発生しています　(集計不可)"]
["MSG_CHK_ERR_P(2)","エラーが発生しています　(集計結果はエラー行を除外しています)"]
["MSG_CHK_ERR_P(3)","サービス種別を選択してください",null,"エラーチェック　プログラム"]
["MSG_CHK_ERR_P(4)","1週間の所定労働時間は32～44の数値で入力してください",null,"番号","項目","対象列\nセル","チェック種類","入力値種類","スタイル","チェック内容","MSGCD","エラー表示メッセージ","表示場所","集計結果","備考","確認"]
["MSG_CHK_ERR_P(5)","勤務形態をリストから選択してください",null,1,"全体","全体","プログラム",null,null,"エラーが1つ以上発生している場合\n※集計不可のエラーが含まれている場合","MSG_CHK_ERR_P(1)",{"$f":"IF(ISERROR(VLOOKUP(K21,$A$6:$B$46,2,0))=TRUE,\"\",VLOOKUP(K21,$A$6:$B$46,2,0))","v":"エラーが発生しています　(集計不可)"},"セル「G9」","全ての集計結果が算出不可","プログラムチェック結果で1つ以上のエラーが発生している場合に表示する\n「サービス種別」・「1週間の所定労働時間」のブランクエラーを含む場合","メッセージ確認"]
["MSG_CHK_ERR_P(6)","職種をリストから選択してください",null,2,"全体","全体","プログラム",null,null,"エラーが1つ以上発生している場合\n※集計不可のエラーが含まれていない場合","MSG_CHK_ERR_P(2)",{"$f":"IF(ISERROR(VLOOKUP(K22,$A$6:$B$46,2,0))=TRUE,\"\",VLOOKUP(K22,$A$6:$B$46,2,0))","v":"エラーが発生しています　(集計結果はエラー行を除外しています)"},"セル「G9」","該当行は集計結果から除外","プログラムチェック結果で1つ以上のエラーが発生している場合に表示する\n※行単位のエラーのみの場合","メッセージ確認"]
["MSG_CHK_ERR_P(7)","職種はリストから選択してください",null,3,"サービス種別","Ｈ7","プログラム",null,null,"未記入","MSG_CHK_ERR_P(3)","サービス種別を選択してください","セル「J7」","全ての集計結果が算出不可","サービス種別が複数ある調査票種のみ\n※サービス種別の選択が不要な票種は不要","サービス種別がブランクの場合の集計ができない旨を確認"]
["MSG_CHK_ERR_P(8)","性別をリストから選択してください",null,4,"１週間の所定労働時間","C9","プログラム",null,null,"未記入","MSG_CHK_ERR_P(4)","1週間の所定労働時間は32～44の数値で入力してください","セル「C10」","全ての集計結果が算出不可",null,"所定労働時間がブランクの場合の集計ができない旨を確認"]
["MSG_CHK_ERR_P(9)","⑦勤務時間は所定労働時間以下の数値を入力してください",null,5,"１週間の所定労働時間","C9","プログラム",null,null,"≠小数点第２位以内","MSG_CHK_ERR_P(11)","小数点第２位以内の数値を入力してください","セル「C10」","全ての集計結果が算出不可",null,"所定労働時間がブランクの場合の集計ができない旨を確認"]
["MSG_CHK_ERR_P(10)","⑧勤務時間は「所定労働時間ｘ４」以下の数値を入力してください",null,6,"勤務形態","C列","プログラム",null,null,"未記入","MSG_CHK_ERR_P(5)","勤務形態をリストから選択してください","L列 -エラー該当行","L列にエラー表示\n→該当行は集計結果から除外",null,"メッセージ確認"]
["MSG_CHK_ERR_P(11)","小数点第２位以内の数値を入力してください",null,7,"職種","D列","プログラム",null,null,"未記入","MSG_CHK_ERR_P(6)","職種をリストから選択してください","L列 -エラー該当行","L列にエラー表示\n→該当行は集計結果から除外",null,"勤務形態入力時"]
["MSG_CHK_ERR_P(12)","小数点第３位以内の数値を入力してください",null,8,"職種","D列","プログラム",null,null,"選択されたサービス種別に該当しない職種の場合","MSG_CHK_ERR_P(7)","職種はリストから選択してください","L列 -エラー該当行","L列にエラー表示\n→該当行は集計結果から除外","サービス種別を後で変更したケースに対応","チェックの追加を確認\n勤務形態入力時"]
["MSG_CHK_ERR_P(13)","⑨人数は両方入力してください",null,9,"性別","E列","プログラム",null,null,"未記入","MSG_CHK_ERR_P(8)","性別をリストから選択してください","L列 -エラー該当行","L列にエラー表示\n→該当行は集計結果から除外","性別の選択が不要な票はチェック不要\n※列幅を0で非表示対応とする","2021.から実稼働"]
["MSG_CHK_ERR_P(14)","⑦～⑩が未入力です",null,10,"⑥この施設での１週間の勤務時間","Ｇ列","プログラム",null,null,"≧所定労働時間","MSG_CHK_ERR_P(9)","⑦勤務時間は所定労働時間以下の数値を入力してください","L列 -エラー該当行","L列にエラー表示\n→該当行は集計結果から除外","入力規則では対応不可\n→プログラムで対応（1～44までは入力規則で対応、そうでない場合プログラムで対応）","入力規則からプログラムでのチェックに変更\n勤務形態：常勤兼務の時"]
["MSG_CHK_ERR_P(15)","常勤専従の人数が未入力です",null,11,"⑥この施設での１週間の勤務時間","Ｇ列","プログラム",null,null,">所定労働時間","MSG_CHK_ERR_P(24)","⑦勤務時間は所定労働時間より小さい数値を入力してください","L列 -エラー該当行","L列にエラー表示\n→該当行は集計結果から除外","入力規則では対応不可\n→プログラムで対応（1～44までは入力規則で対応、そうでない場合プログラムで対応）","入力規則からプログラムでのチェックに変更\n勤務形態：非常勤の時"]
["MSG_CHK_ERR_P(16)","常勤専従は常勤専従人数のみ入力してください",null,12,"⑥この施設での１週間の勤務時間","Ｇ列","プログラム",null,null,"≠小数点第２位以内","MSG_CHK_ERR_P(11)","小数点第２位以内の数値を入力してください","L列 -エラー該当行","L列にエラー表示\n→該当行は集計結果から除外","小数点以下の入力規則はできない為、チェックを追加","チェックの追加を確認\n勤務形態：常勤兼務or非常勤の時"]
["MSG_CHK_ERR_P(17)","常勤専従は⑦～⑩の入力は不要です",null,13,"⑦1か月に数回の勤務の場合の１か月の勤務時間","Ｈ列","プログラム",null,null,"≧所定労働時間×４","MSG_CHK_ERR_P(10)","⑧勤務時間は「所定労働時間ｘ４」以下の数値を入力してください","L列 -エラー該当行","L列にエラー表示\n→該当行は集計結果から除外","入力規則では対応不可\n→プログラムで対応（1～176までは入力規則で対応、そうでない場合プログラムで対応）","入力規則からプログラムでのチェックに変更\n勤務形態：常勤兼務の時"]
["MSG_CHK_ERR_P(18)","常勤兼務・非常勤で常勤専従人数の入力があります",null,14,"⑦1か月に数回の勤務の場合の１か月の勤務時間","Ｈ列","プログラム",null,null,">所定労働時間×４","MSG_CHK_ERR_P(25)","⑧勤務時間は「所定労働時間ｘ４」より小さい数値を入力してください","L列 -エラー該当行","L列にエラー表示\n→該当行は集計結果から除外","入力規則では対応不可\n→プログラムで対応（1～176までは入力規則で対応、そうでない場合プログラムで対応）","入力規則からプログラムでのチェックに変更\n勤務形態：非常勤の時"]
["MSG_CHK_ERR_P(19)","⑦～⑩のうち該当する項目のみに入力してください(常勤兼務)",null,15,"⑦1か月に数回の勤務の場合の１か月の勤務時間","Ｈ列","プログラム",null,null,"≠小数点第２位以内","MSG_CHK_ERR_P(11)","小数点第２位以内の数値を入力してください","L列 -エラー該当行","L列にエラー表示\n→該当行は集計結果から除外","小数点以下の入力規則はできない為、チェックを追加","チェックの追加を確認\n勤務形態：常勤兼務or非常勤の時"]
["MSG_CHK_ERR_P(20)","⑦～⑩のうち該当する項目のみに入力してください(非常勤)",null,16,"⑧勤務時間が分けられない場合","Ｉ列・Ｊ列\n","プログラム",null,null,"I列・Ｊ列以外に記入がなく、\nI列・Ｊ列の両方に記入がない","MSG_CHK_ERR_P(13)","⑨人数は両方入力してください","L列 -エラー該当行","L列にエラー表示\n→該当行は集計結果から除外","H列・I列の整合性チェックを追加","チェックの追加を確認\n勤務形態：常勤兼務or非常勤の時"]
["MSG_CHK_ERR_P(21)","⑨人数は両方入力してください",null,17,"⑨当該職種の勤務割合","Ｋ列","プログラム",null,null,"≠小数点第3位以内","MSG_CHK_ERR_P(12)","小数点第３位以内の数値を入力してください","L列 -エラー該当行","L列にエラー表示\n→該当行は集計結果から除外","小数点以下の入力規則はできない為、チェックを追加","チェックの追加を確認\n勤務形態：常勤兼務or非常勤の時"]
["MSG_CHK_ERR_P(22)","該当職種における勤務時間がわからない場合は、換算数を⑨に入力してください",null,18,"⑥～⑨","G列-K列\n","プログラム",null,null,"未記入","MSG_CHK_ERR_P(14)","⑦～⑩が未入力です","L列 -エラー該当行","L列にエラー表示\n→該当行は集計結果から除外","※人数按分(I、J）が１つのみ入力されている場合は番号16のチェックで対応","③④⑤の入力がある場合\n勤務形態：常勤兼務or非常勤の時"]
["MSG_CHK_ERR_P(23)","換算数を⑩に入力してください",null,19,"⑥～⑨","G列-K列","プログラム",null,null,"未記入","MSG_CHK_ERR_P(19)","⑦～⑩のうち該当する項目のみに入力してください(常勤兼務)","L列 -エラー該当行","L列にエラー表示\n→該当行は集計結果から除外",null,"勤務形態：常勤兼務かつ⑦~⑩を\n　　　　　　　　二種類以上入力時"]
["MSG_CHK_ERR_P(24)","⑦勤務時間は所定労働時間より小さい数値を入力してください",null,20,"⑥～⑨","G列-K列","プログラム",null,null,"未記入","MSG_CHK_ERR_P(20)","⑦～⑩のうち該当する項目のみに入力してください(非常勤)","L列 -エラー該当行","L列にエラー表示\n→該当行は集計結果から除外",null,"勤務形態：非常勤かつ⑦~⑩を二種類以上入力時\nただし⑨（両方）入力時⑦or⑧の二種類入力はＯＫ"]
["MSG_CHK_ERR_P(25)","⑧勤務時間は「所定労働時間ｘ４」より小さい数値を入力してください",null,21,"⑤","Ｆ列","プログラム",null,null,"未記入","MSG_CHK_ERR_P(15)","常勤専従の人数が未入力です","L列 -エラー該当行","L列にエラー表示\n→該当行は集計結果から除外",null,"勤務形態：常勤専従かつ③④⑤入力時"]
["MSG_CHK_ERR_P(26)","⑦もしくは⑧に勤務時間を入力してください",null,22,"⑥～⑨","G列-K列","プログラム",null,null,"記入","MSG_CHK_ERR_P(16)","常勤専従は常勤専従人数のみ入力してください","L列 -エラー該当行","L列にエラー表示\n→該当行は集計結果から除外",null,"勤務形態：常勤専従かつ③④⑤⑥に入力があり、⑦以降にも入力がある時"]
[null,null,null,23,"⑤","Ｆ列","プログラム",null,null,"記入","MSG_CHK_ERR_P(18)","常勤兼務・非常勤で常勤専従人数の入力があります","L列 -エラー該当行","L列にエラー表示\n→該当行は集計結果から除外",null,"勤務形態：常勤専従or非常勤の時"]
[null,null,null,24,"⑧","Ｉ列・Ｊ列","プログラム",null,null,"未記入（片方）","MSG_CHK_ERR_P(21)","⑨人数は両方入力してください","L列 -エラー該当行","L列にエラー表示\n→該当行は集計結果から除外",null,"勤務形態：非常勤かつ⑦or⑧で⑨が「ブランク」と「数値あり」の組み合わせで入力時\n"]
[null,null,null,25,"⑨","Ｋ列","プログラム",null,null,"未記入","MSG_CHK_ERR_P(22)","該当職種における勤務時間がわからない場合は、換算数を⑨に入力してください","L列 -エラー該当行","L列にエラー表示\n→該当行は集計結果から除外","福祉は⑨Aに０の入力を許さない","勤務形態：常勤兼務かつ⑨（両方）に0入力時"]
[null,null,null,26,"⑨","Ｋ列","プログラム",null,null,"未記入","MSG_CHK_ERR_P(23)","換算数を⑩に入力してください","L列 -エラー該当行","L列にエラー表示\n→該当行は集計結果から除外","福祉は⑨Aに０の入力を許さない","勤務形態：非常勤の時かつ⑦or⑧入力かつ⑨（両方）に0入力時"]
[null,null,null,27,"⑥⑦","G列-Ｈ列","プログラム",null,null,"未記入","MSG_CHK_ERR_P(26)","⑦もしくは⑧に勤務時間を入力してください","L列 -エラー該当行","L列にエラー表示\n→該当行は集計結果から除外",null,"勤務形態：非常勤かつ⑨両方のみ入力時"]

{"sheet":"集計シート","index":5,"n_rows":26,"n_cols":82,"rows_kept":26,"cut":false,"hidden":true,"merged":[[2,6,2,10],[2,11,2,17],[3,7,3,8],[3,9,3,10],[3,12,3,14],[3,15,3,17]]}
["所定労働時間"]
[0,"※[計算シート」で指定した「所定労働時間」が32時間より小さい場合は「32時間」*4で補正される"]
[null,null,null,null,null,null,"転記情報",null,null,null,null,"集計算出値",null,null,null,null,null,null,null,null,null,null,null,null,null,null,null,null,"Err1","Err2","Err6",null,"Err4","Err5(所定時間）",null,null,null,null,null,null,null,null,null,null,"Err3",null,null,null,null,null,null,null,null,"バックアップ用ヘッダー"]
["集計インデックス",null,null,null,null,null,"専従","常勤兼務",null,"非常勤",null,"専従","常勤兼務",null,null,"非常勤",null,null,null,null,null,null,null,"集計用データ",null,"※うち数",null,null,null,null,null,null,null,"ロウデータ",null,null,null,null,null,null,null,null,null,null,null,"バックアップ用",null,null,null,null,null,"*フラグ1の時のみ、四捨五入する",null,"集計用データ",null,"※うち数",null,null,null,null,null,null,null,"ロウデータ",null,null,null,null,null,null,null,"この施設・事業所の利用人数","兼務する施設・事業所の利用人数"]
["票種","サービス種別","職種-資格","集計用職種","集計用資格","集計用資格2","人数","人数","換算数","人数","換算数","人数","人数","換算数","計算","人数","換算数","計算","性別","集計用Index1","集計用Index2","集計用Index3","予備",{"$f":"IF(AC6=\"Err1\",AC6,\"\")&IF(AD6=\"Err2\",AD6,\"\")&IF(AE6=\"Err6\",AE6,\"\")&IF(AS6=\"\",\"\",\"Err3\")&IF(AJ6=\"常勤専従\",\"\",IF(AG6=0,\"Err4\",\"\"))&IF($A$2=0,\"Err5\",\"\")","v":"Err5"},{"$f":"IF(X6<>\"\",\"\",IF(AD6=\"該当資格なし\",\"\",IF(AL6=\"\",\"\",AL6&\"-\")&AC6&IF(AD6=0,\"\",\"-\"&AD6)&\"-\"&AJ6))","v":""},{"$f":"IF(X6<>\"\",\"\",IF(AD6=0,\"\",IF(AL6=\"\",\"\",AL6&\"-\")&AC6&\"-\"&AJ6))","v":""},{"$f":"IF(X6<>\"\",\"\",IF(AE6=\"該当資格なし\",\"\",IF(AE6=0,\"\",IF(AL6=\"\",\"\",AL6&\"-\")&AD6&\"-\"&AJ6)))","v":""},"予備",{"$f":"IF(ISERROR(VLOOKUP($AK6,$C$6:$F$31,2,0))=TRUE,\"Err1\",VLOOKUP($AK6,$C$6:$F$31,2,0))","v":"1施設長"},{"$f":"IF(ISERROR(VLOOKUP($AK6,$C$6:$F$31,3,0))=TRUE,\"Err2\",VLOOKUP($AK6,$C$6:$F$31,3,0))","v":"該当資格なし"},{"$f":"IF(ISERROR(VLOOKUP($AK6,$C$6:$F$31,4,0))=TRUE,\"Err6\",VLOOKUP($AK6,$C$6:$F$31,4,0))","v":0},"予備",{"$f":"IF(AN6<>0,AN6*4,IF(AO6<>0,AO6,IF(AP6*AQ6<>0,ROUND((AP6/(AP6+AQ6)),1)*$A$2,IF(AR6<>0,AR6*$A$2,0))))","v":0},"番号","備考","勤務形態","職種","性別","専従人数","時間①","時間②","時間③","時間③","時間④","エラー","時間①","時間②","時間③","時間③","時間④",{"$f":"AJ6&AK6&AL6&AV6&AW6","v":"常勤専従1施設長-該当資格なし男"},{"$f":"IF(AJ6=\"非常勤\",IF(AX6=\"\",IF(AV6&AW6<>\"\",IF(AV6<>0,COUNTIF($AY$5:$AY$6,AY6),0),0),0),0)","v":0},null,"集計対象","集計用Index1","集計用Index2","集計用Index3","予備","職種","資格","資格2","予備","時間(標準化)","番号","備考","勤務形態","職種","性別","専従人数","時間①","時間②","時間③","時間③","時間④","エラー","時間①","時間②","時間③","時間③","時間④","特殊判断Idx","特殊判断Flg"]
["C票","-","1施設長-該当資格なし","1施設長","該当資格なし",null,"C6","C7","C8","C9","C10",null,null,null,null,null,null,null,null,null,"1施設長",null,null,{"$f":"IF(AC6=\"Err1\",AC6,\"\")&IF(AD6=\"Err2\",AD6,\"\")&IF(AE6=\"Err6\",AE6,\"\")&IF(AS6=\"\",\"\",\"Err3\")&IF(AJ6=\"常勤専従\",\"\",IF(AG6=0,\"Err4\",\"\"))&IF($A$2=0,\"Err5\",\"\")","v":"Err5"},{"$f":"IF(X6<>\"\",\"\",IF(AD6=\"該当資格なし\",\"\",IF(AL6=\"\",\"\",AL6&\"-\")&AC6&IF(AD6=0,\"\",\"-\"&AD6)&\"-\"&AJ6))","v":""},{"$f":"IF(X6<>\"\",\"\",IF(AD6=0,\"\",IF(AL6=\"\",\"\",AL6&\"-\")&AC6&\"-\"&AJ6))","v":""},{"$f":"IF(X6<>\"\",\"\",IF(AE6=\"該当資格なし\",\"\",IF(AE6=0,\"\",IF(AL6=\"\",\"\",AL6&\"-\")&AD6&\"-\"&AJ6)))","v":""},null,{"$f":"IF(ISERROR(VLOOKUP($AK6,$C$6:$F$47,2,0))=TRUE,\"Err1\",VLOOKUP($AK6,$C$6:$F$47,2,0))","v":"1施設長"},{"$f":"IF(ISERROR(VLOOKUP($AK6,$C$6:$F$47,3,0))=TRUE,\"Err2\",VLOOKUP($AK6,$C$6:$F$47,3,0))","v":"該当資格なし"},{"$f":"IF(ISERROR(VLOOKUP($AK6,$C$6:$F$47,4,0))=TRUE,\"Err6\",VLOOKUP($AK6,$C$6:$F$47,4,0))","v":0},null,{"$f":"IF(AN6<>0,AN6*4,IF(AO6<>0,AO6,IF(AP6*AQ6<>0,ROUND((AP6/(AP6+AQ6)),1)*$A$2,IF(AR6<>0,AR6*$A$2,0))))","v":0},1,"Aさん","常勤専従","1施設長-該当資格なし","男",1,null,null,null,null,null,null,null,null,null,null,null,{"$f":"AJ6&AK6&AL6&AV6&AW6","v":"常勤専従1施設長-該当資格なし男"},{"$f":"IF(AJ6=\"非常勤\",IF(AX6=\"\",IF(AV6&AW6<>\"\",IF(AV6<>0,COUNTIF($AY$6:$AY$14,AY6),0),0),0),0)","v":0}]
["C票","-","1施設長-社会福祉士","1施設長","社会福祉士",null,"D6","D7","D8","D9","D10",null,null,null,null,null,null,null,null,"1施設長-社会福祉士","1施設長",null,null,"Err5","","","",null,"9セラピスト","理学療法士",0,null,80,2,"Bさん","非常勤","9セラピスト-理学療法士","女",null,20,null,null,null,null,null,20,null,null,null,null,"非常勤9セラピスト-理学療法士女",0]
["C票","-","2職業・作業指導員","2職業・作業指導員",null,null,"E6","E7","E8","E9","E10",null,null,null,null,null,null,null,null,"2職業・作業指導員",null,null,null,"Err5","","","",null,"4児童厚生員",0,0,null,10,3,"Cさん","非常勤","4児童厚生員","女",null,null,10,null,null,null,null,null,10,null,null,null,"非常勤4児童厚生員女",0]
["C票","-","3生活・児童指導員、児童自立支援専門員-該当資格なし","3生活・児童指導員、児童自立支援専門員","該当資格なし",null,"F6","F7","F8","F9","F10",null,null,null,null,null,null,null,null,null,"3生活・児童指導員、児童自立支援専門員",null,null,"Err5","","","",null,"13栄養士","該当資格なし",0,null,40,4,"Dさん","常勤兼務","13栄養士-該当資格なし","女",null,10,null,null,null,null,null,10,null,null,null,null,"常勤兼務13栄養士-該当資格なし女",0]
["C票","-","3生活・児童指導員、児童自立支援専門員-社会福祉士","3生活・児童指導員、児童自立支援専門員","社会福祉士",null,"G6","G7","G8","G9","G10",null,null,null,null,null,null,null,null,"3生活・児童指導員、児童自立支援専門員-社会福祉士","3生活・児童指導員、児童自立支援専門員",null,null,"Err5","","","",null,"14調理員",0,0,null,120,5,"Dさん","常勤兼務","14調理員","女",null,30,null,null,null,null,null,30,null,null,null,null,"常勤兼務14調理員女",0]
["C票","-","4児童厚生員","4児童厚生員",null,null,"H6","H7","H8","H9","H10",null,null,null,null,null,null,null,null,"4児童厚生員",null,null,null,"Err5","","","",null,"5保育士",0,0,null,60,6,"Eさん","非常勤","5保育士","男",null,15,null,null,null,null,null,15,null,null,null,null,"非常勤5保育士男",0]
["C票","-","5保育士","5保育士",null,null,"I6","I7","I8","I9","I10",null,null,null,null,null,null,null,null,"5保育士",null,null,null,"Err5","","","",null,"15事務員",0,0,null,80,7,"Eさん","非常勤","15事務員","男",null,20,null,null,null,null,null,20,null,null,null,null,"非常勤15事務員男",0]
["C票","-","6児童生活支援員-該当資格なし","6児童生活支援員","該当資格なし",null,"J6","J7","J8","J9","J10",null,null,null,null,null,null,null,null,null,"6児童生活支援員",null,null,"Err4Err5","","","",null,"12保健師助産師看護師",0,0,null,0,8,"Fさん","常勤兼務","12保健師・助産師・看護師","女",null,null,null,40,25,null,null,null,null,40,25,null,"常勤兼務12保健師・助産師・看護師女4025",0]
["C票","-","6児童生活支援員-社会福祉士","6児童生活支援員","社会福祉士",null,"K6","K7","K8","K9","K10",null,null,null,null,null,null,null,null,"6児童生活支援員-社会福祉士","6児童生活支援員",null,null,"Err4Err5","","","",null,"8医師",0,0,null,0,9,"Gさん","非常勤","8医師","男",null,null,null,null,null,0.6,null,30,null,40,10,null,"非常勤8医師男4010",1]
["C票","-","7母子支援員","7母子支援員",null,null,"L6","L7","L8","L9","L10",null,null,null,null,null,null,null,null,"7母子支援員"]
["C票","-","8医師","8医師",null,null,"C14","C15","C16","C17","C18",null,null,null,null,null,null,null,null,"8医師"]
["C票","-","9セラピスト-理学療法士","9セラピスト","理学療法士",null,"D14","D15","D16","D17","D18",null,null,null,null,null,null,null,null,"9セラピスト-理学療法士","9セラピスト"]
["C票","-","10セラピスト-作業療法士","10セラピスト","作業療法士",null,"E14","E15","E16","E17","E18",null,null,null,null,null,null,null,null,"10セラピスト-作業療法士","10セラピスト"]
["C票","-","11セラピスト-その他の療法員","11セラピスト","その他の療法員",null,"F14","F15","F16","F17","F18",null,null,null,null,null,null,null,null,"11セラピスト-その他の療法員","11セラピスト"]
["C票","-","12保健師・助産師・看護師","12保健師助産師看護師",null,null,"G14","G15","G16","G17","G18",null,null,null,null,null,null,null,null,"12保健師助産師看護師"]
["C票","-","13栄養士-該当資格なし","13栄養士","該当資格なし",null,"H14","H15","H16","H17","H18",null,null,null,null,null,null,null,null,null,"13栄養士"]
["C票","-","13栄養士-管理栄養士","13栄養士","管理栄養士",null,"I14","I15","I16","I17","I18",null,null,null,null,null,null,null,null,"13栄養士-管理栄養士","13栄養士"]
["C票","-","14調理員","14調理員",null,null,"J14","J15","J16","J17","J18",null,null,null,null,null,null,null,null,"14調理員"]
["C票","-","15事務員","15事務員",null,null,"K14","K15","K16","K17","K18",null,null,null,null,null,null,null,null,"15事務員"]
["C票","-","16児童発達支援管理責任者","16児童発達支援管理責任者",null,null,"L14","L15","L16","L17","L18",null,null,null,null,null,null,null,null,"16児童発達支援管理責任者"]
["C票","-","17その他の職員","17その他の職員",null,null,"M14","M15","M16","M17","M18",null,null,null,null,null,null,null,null,"17その他の職員"]

{"sheet":"エラーチェック","index":6,"n_rows":47,"n_cols":16,"rows_kept":47,"cut":false,"hidden":true,"merged":[]}
["2024.5.14"]
[null,"勤務時間①-④の入力値は①＞②＞③＞④　※チェック時に優先度の高い有効値がある場合は、それより低い優先度の値のチェックは不要とする"]
[]
["エラーコード一覧",null,null,"エラーチェック　入力規則"]
["MSGCD","エラー表示メッセージ",null,"番号","項目","対象列\nセル","チェック種類","入力値種類","スタイル","チェック内容","MSGCD","エラー表示メッセージ","表示場所","集計結果","備考","確認"]
["MSG_CHK_ERR_K(1)","リストから選択してください",null,1,"サービス種別","Ｈ7","入力規則","リスト","停止","選択肢以外","MSG_CHK_ERR_K(1)",{"$f":"IF(ISERROR(VLOOKUP(K6,$A$6:$B$38,2,0))=TRUE,\"\",VLOOKUP(K6,$A$6:$B$38,2,0))","v":"リストから選択してください"},"メッセージボックス","メッセージボックスにエラーが表示される場合→入力自体不可\nL列にエラー表示→該当行は集計結果から除外","値をペーストされた場合は、L列 -エラー該当行にメッセージ表示","メッセージ確認"]
["MSG_CHK_ERR_K(2)","1週間の所定労働時間は32～44の数値で入力してください",null,2,"１週間の所定労働時間","C9","入力規則","小数点数","停止","≠小数\n範囲：1-44","MSG_CHK_ERR_K(2)","1週間の所定労働時間は32～44の数値で入力してください","メッセージボックス","メッセージボックスにエラーが表示される場合→入力自体不可\nL列にエラー表示→該当行は集計結果から除外","値をペーストされた場合は、L列 -エラー該当行にメッセージ表示","メッセージ確認"]
["MSG_CHK_ERR_K(3)","１週間の勤務時間は1～44の数値で入力してください",null,3,"勤務形態","C列","入力規則","リスト","停止","選択肢以外","MSG_CHK_ERR_K(9)","勤務形態はリストから選択してください","メッセージボックス","メッセージボックスにエラーが表示される場合→入力自体不可\nL列にエラー表示→該当行は集計結果から除外","値をペーストされた場合は、L列 -エラー該当行にメッセージ表示","メッセージ確認"]
["MSG_CHK_ERR_K(4)","人数は0～99999の整数で入力してください",null,4,"職種","D列","入力規則","リスト","停止","選択肢以外","MSG_CHK_ERR_P(7)","職種はリストから選択してください","メッセージボックス","メッセージボックスにエラーが表示される場合→入力自体不可\nL列にエラー表示→該当行は集計結果から除外","値をペーストされた場合は、L列 -エラー該当行にメッセージ表示","メッセージ確認"]
["MSG_CHK_ERR_K(5)","１職種あたりの換算数は0.1～1.0の数値で入力してください",null,5,"性別","E列","入力規則","リスト","停止","未記入","MSG_CHK_ERR_K(8)","性別はリストから選択してください","メッセージボックス","メッセージボックスにエラーが表示される場合→入力自体不可\nL列にエラー表示→該当行は集計結果から除外","値をペーストされた場合は、L列 -エラー該当行にメッセージ表示","メッセージ確認"]
["MSG_CHK_ERR_K(6)","1か月の勤務時間は1～176の数値で入力してください",null,6,"⑤常勤専従人数","Ｆ列","入力規則","整数","停止","≠整数\n範囲：1～99999","MSG_CHK_ERR_K(7)","人数は1～99999の整数で入力してください","メッセージボックス","メッセージボックスにエラーが表示される場合→入力自体不可\nL列にエラー表示→該当行は集計結果から除外","値をペーストされた場合は、L列 -エラー該当行にメッセージ表示","メッセージ確認"]
["MSG_CHK_ERR_K(7)","人数は1～99999の整数で入力してください",null,7,"⑥この施設での１週間の勤務時間","G列","入力規則","小数点数","停止","≠小数\n範囲：1-44","MSG_CHK_ERR_K(3)","１週間の勤務時間は1～44の数値で入力してください","メッセージボックス","メッセージボックスにエラーが表示される場合→入力自体不可\nL列にエラー表示→該当行は集計結果から除外","所定労働時間とのチェックはプログラムで対応\n値をペーストされた場合は、L列 -エラー該当行にメッセージ表示","メッセージ確認"]
["MSG_CHK_ERR_K(8)","性別はリストから選択してください",null,8,"⑦1か月に数回の勤務の場合の１か月の勤務時間","H列","入力規則","小数点数","停止","≠小数\n範囲：1-176","MSG_CHK_ERR_K(6)","1か月の勤務時間は1～176の数値で入力してください","メッセージボックス","メッセージボックスにエラーが表示される場合→入力自体不可\nL列にエラー表示→該当行は集計結果から除外","所定労働時間とのチェックはプログラムで対応\n値をペーストされた場合は、L列 -エラー該当行にメッセージ表示","メッセージ確認"]
["MSG_CHK_ERR_K(9)","勤務形態はリストから選択してください",null,9,"⑧勤務時間が分けられない場合","I列・J列","入力規則","整数","停止","≠整数\n範囲：0～99999","MSG_CHK_ERR_K(4)","人数は0～99999の整数で入力してください","メッセージボックス","メッセージボックスにエラーが表示される場合→入力自体不可\nL列にエラー表示→該当行は集計結果から除外","整数のみ 介護（I、J列）、福祉（I列）\n値をペーストされた場合は、L列 -エラー該当行にメッセージ表示","メッセージ確認"]
[null,null,null,10,"⑧勤務時間が分けられない場合","I列","入力規則","整数","停止","≠整数\n範囲：1～99999","MSG_CHK_ERR_K(7)","人数は1～99999の整数で入力してください","メッセージボックス","メッセージボックスにエラーが表示される場合→入力自体不可\nL列にエラー表示→該当行は集計結果から除外","整数のみ 福祉\n値をペーストされた場合は、L列 -エラー該当行にメッセージ表示","メッセージ確認"]
[null,null,null,11,"⑨当該職種の換算数","K列","入力規則","小数点数","停止","＞１．０\n範囲：0.1～1","MSG_CHK_ERR_K(5)","１職種あたりの換算数は0.1～1.0の数値で入力してください","メッセージボックス","メッセージボックスにエラーが表示される場合→入力自体不可\nL列にエラー表示→該当行は集計結果から除外","値をペーストされた場合は、L列 -エラー該当行にメッセージ表示","メッセージ確認"]
["MSG_CHK_ERR_P(1)","エラーが発生しています　(集計不可)"]
["MSG_CHK_ERR_P(2)","エラーが発生しています　(集計結果はエラー行を除外しています)"]
["MSG_CHK_ERR_P(3)","サービス種別を選択してください",null,"エラーチェック　プログラム"]
["MSG_CHK_ERR_P(4)","1週間の所定労働時間は32～44の数値で入力してください",null,"番号","項目","対象列\nセル","チェック種類","入力値種類","スタイル","チェック内容","MSGCD","エラー表示メッセージ","表示場所","集計結果","備考","確認"]
["MSG_CHK_ERR_P(5)","勤務形態をリストから選択してください",null,1,"全体","全体","プログラム",null,null,"エラーが1つ以上発生している場合\n※集計不可のエラーが含まれている場合","MSG_CHK_ERR_P(1)",{"$f":"IF(ISERROR(VLOOKUP(K21,$A$6:$B$46,2,0))=TRUE,\"\",VLOOKUP(K21,$A$6:$B$46,2,0))","v":"エラーが発生しています　(集計不可)"},"セル「G9」","全ての集計結果が算出不可","プログラムチェック結果で1つ以上のエラーが発生している場合に表示する\n「サービス種別」・「1週間の所定労働時間」のブランクエラーを含む場合","メッセージ確認"]
["MSG_CHK_ERR_P(6)","職種をリストから選択してください",null,2,"全体","全体","プログラム",null,null,"エラーが1つ以上発生している場合\n※集計不可のエラーが含まれていない場合","MSG_CHK_ERR_P(2)",{"$f":"IF(ISERROR(VLOOKUP(K22,$A$6:$B$46,2,0))=TRUE,\"\",VLOOKUP(K22,$A$6:$B$46,2,0))","v":"エラーが発生しています　(集計結果はエラー行を除外しています)"},"セル「G9」","該当行は集計結果から除外","プログラムチェック結果で1つ以上のエラーが発生している場合に表示する\n※行単位のエラーのみの場合","メッセージ確認"]
["MSG_CHK_ERR_P(7)","職種はリストから選択してください",null,3,"サービス種別","Ｈ7","プログラム",null,null,"未記入","MSG_CHK_ERR_P(3)","サービス種別を選択してください","セル「J7」","全ての集計結果が算出不可","サービス種別が複数ある調査票種のみ\n※サービス種別の選択が不要な票種は不要","サービス種別がブランクの場合の集計ができない旨を確認"]
["MSG_CHK_ERR_P(8)","性別をリストから選択してください",null,4,"１週間の所定労働時間","C9","プログラム",null,null,"未記入","MSG_CHK_ERR_P(4)","1週間の所定労働時間は32～44の数値で入力してください","セル「C10」","全ての集計結果が算出不可",null,"所定労働時間がブランクの場合の集計ができない旨を確認"]
["MSG_CHK_ERR_P(9)","⑥勤務時間は所定労働時間以下の数値を入力してください",null,5,"１週間の所定労働時間","C9","プログラム",null,null,"≠小数点第２位以内","MSG_CHK_ERR_P(11)","小数点第２位以内の数値を入力してください","セル「C10」","全ての集計結果が算出不可",null,"所定労働時間がブランクの場合の集計ができない旨を確認"]
["MSG_CHK_ERR_P(10)","⑦勤務時間は「所定労働時間ｘ４」以下の数値を入力してください",null,6,"勤務形態","C列","プログラム",null,null,"未記入","MSG_CHK_ERR_P(5)","勤務形態をリストから選択してください","L列 -エラー該当行","L列にエラー表示\n→該当行は集計結果から除外",null,"メッセージ確認"]
["MSG_CHK_ERR_P(11)","小数点第２位以内の数値を入力してください",null,7,"職種","D列","プログラム",null,null,"未記入","MSG_CHK_ERR_P(6)","職種をリストから選択してください","L列 -エラー該当行","L列にエラー表示\n→該当行は集計結果から除外",null,"勤務形態入力時"]
["MSG_CHK_ERR_P(12)","小数点第３位以内の数値を入力してください",null,8,"職種","D列","プログラム",null,null,"選択されたサービス種別に該当しない職種の場合","MSG_CHK_ERR_P(7)","職種はリストから選択してください","L列 -エラー該当行","L列にエラー表示\n→該当行は集計結果から除外","サービス種別を後で変更したケースに対応","チェックの追加を確認\n勤務形態入力時"]
["MSG_CHK_ERR_P(13)","⑧人数は両方入力してください",null,9,"性別","E列","プログラム",null,null,"未記入","MSG_CHK_ERR_P(8)","性別をリストから選択してください","L列 -エラー該当行","L列にエラー表示\n→該当行は集計結果から除外","性別の選択が不要な票はチェック不要\n※列幅を0で非表示対応とする","2021.から実稼働"]
["MSG_CHK_ERR_P(14)","⑥～⑨が未入力です",null,10,"⑥この施設での１週間の勤務時間","Ｇ列","プログラム",null,null,"≧所定労働時間","MSG_CHK_ERR_P(9)","⑥勤務時間は所定労働時間以下の数値を入力してください","L列 -エラー該当行","L列にエラー表示\n→該当行は集計結果から除外","入力規則では対応不可\n→プログラムで対応（1～44までは入力規則で対応、そうでない場合プログラムで対応）","入力規則からプログラムでのチェックに変更\n勤務形態：常勤兼務の時"]
["MSG_CHK_ERR_P(15)","常勤専従の人数が未入力です",null,11,"⑥この施設での１週間の勤務時間","Ｇ列","プログラム",null,null,">所定労働時間","MSG_CHK_ERR_P(24)","⑥勤務時間は所定労働時間より小さい数値を入力してください","L列 -エラー該当行","L列にエラー表示\n→該当行は集計結果から除外","入力規則では対応不可\n→プログラムで対応（1～44までは入力規則で対応、そうでない場合プログラムで対応）","入力規則からプログラムでのチェックに変更\n勤務形態：非常勤の時"]
["MSG_CHK_ERR_P(16)","常勤専従は常勤専従人数のみ入力してください",null,12,"⑥この施設での１週間の勤務時間","Ｇ列","プログラム",null,null,"≠小数点第２位以内","MSG_CHK_ERR_P(11)","小数点第２位以内の数値を入力してください","L列 -エラー該当行","L列にエラー表示\n→該当行は集計結果から除外","小数点以下の入力規則はできない為、チェックを追加","チェックの追加を確認\n勤務形態：常勤兼務or非常勤の時"]
["MSG_CHK_ERR_P(17)","常勤専従は⑥～⑨の入力は不要です",null,13,"⑦1か月に数回の勤務の場合の１か月の勤務時間","Ｈ列","プログラム",null,null,"≧所定労働時間×４","MSG_CHK_ERR_P(10)","⑦勤務時間は「所定労働時間ｘ４」以下の数値を入力してください","L列 -エラー該当行","L列にエラー表示\n→該当行は集計結果から除外","入力規則では対応不可\n→プログラムで対応（1～176までは入力規則で対応、そうでない場合プログラムで対応）","入力規則からプログラムでのチェックに変更\n勤務形態：常勤兼務の時"]
["MSG_CHK_ERR_P(18)","常勤兼務・非常勤で常勤専従人数の入力があります",null,14,"⑦1か月に数回の勤務の場合の１か月の勤務時間","Ｈ列","プログラム",null,null,">所定労働時間×４","MSG_CHK_ERR_P(25)","⑦勤務時間は「所定労働時間ｘ４」より小さい数値を入力してください","L列 -エラー該当行","L列にエラー表示\n→該当行は集計結果から除外","入力規則では対応不可\n→プログラムで対応（1～176までは入力規則で対応、そうでない場合プログラムで対応）","入力規則からプログラムでのチェックに変更\n勤務形態：非常勤の時"]
["MSG_CHK_ERR_P(19)","⑥～⑨のうち該当する項目のみに入力してください(常勤兼務)",null,15,"⑦1か月に数回の勤務の場合の１か月の勤務時間","Ｈ列","プログラム",null,null,"≠小数点第２位以内","MSG_CHK_ERR_P(11)","小数点第２位以内の数値を入力してください","L列 -エラー該当行","L列にエラー表示\n→該当行は集計結果から除外","小数点以下の入力規則はできない為、チェックを追加","チェックの追加を確認\n勤務形態：常勤兼務or非常勤の時"]
["MSG_CHK_ERR_P(20)","⑥～⑨のうち該当する項目のみに入力してください(非常勤)",null,16,"⑧勤務時間が分けられない場合","Ｉ列・Ｊ列\n","プログラム",null,null,"I列・Ｊ列以外に記入がなく、\nI列・Ｊ列の両方に記入がない","MSG_CHK_ERR_P(13)","⑧人数は両方入力してください","L列 -エラー該当行","L列にエラー表示\n→該当行は集計結果から除外","H列・I列の整合性チェックを追加","チェックの追加を確認\n勤務形態：常勤兼務or非常勤の時"]
["MSG_CHK_ERR_P(21)","⑧人数は両方入力してください",null,17,"⑨当該職種の勤務割合","Ｋ列","プログラム",null,null,"≠小数点第3位以内","MSG_CHK_ERR_P(12)","小数点第３位以内の数値を入力してください","L列 -エラー該当行","L列にエラー表示\n→該当行は集計結果から除外","小数点以下の入力規則はできない為、チェックを追加","チェックの追加を確認\n勤務形態：常勤兼務or非常勤の時"]
["MSG_CHK_ERR_P(22)","該当職種における勤務時間がわからない場合は、換算数を⑨に入力してください",null,18,"⑥～⑨","G列-K列\n","プログラム",null,null,"未記入","MSG_CHK_ERR_P(14)","⑥～⑨が未入力です","L列 -エラー該当行","L列にエラー表示\n→該当行は集計結果から除外","※人数按分(I、J）が１つのみ入力されている場合は番号16のチェックで対応","③④の入力がある場合\n勤務形態：常勤兼務or非常勤の時"]
["MSG_CHK_ERR_P(23)","換算数を⑨に入力してください",null,19,"⑥～⑨","G列-K列","プログラム",null,null,"未記入","MSG_CHK_ERR_P(19)","⑥～⑨のうち該当する項目のみに入力してください(常勤兼務)","L列 -エラー該当行","L列にエラー表示\n→該当行は集計結果から除外",null,"勤務形態：常勤兼務かつ⑥~⑨を\n　　　　　　　　二種類以上入力時"]
["MSG_CHK_ERR_P(24)","⑥勤務時間は所定労働時間より小さい数値を入力してください",null,20,"⑥～⑨","G列-K列","プログラム",null,null,"未記入","MSG_CHK_ERR_P(20)","⑥～⑨のうち該当する項目のみに入力してください(非常勤)","L列 -エラー該当行","L列にエラー表示\n→該当行は集計結果から除外",null,"勤務形態：非常勤かつ⑥~⑨を二種類以上入力時\nただし⑧（両方）入力時⑥or⑦の二種類入力はＯＫ"]
["MSG_CHK_ERR_P(25)","⑦勤務時間は「所定労働時間ｘ４」より小さい数値を入力してください",null,21,"⑤","Ｆ列","プログラム",null,null,"未記入","MSG_CHK_ERR_P(15)","常勤専従の人数が未入力です","L列 -エラー該当行","L列にエラー表示\n→該当行は集計結果から除外",null,"勤務形態：常勤専従かつ③④入力時"]
["MSG_CHK_ERR_P(26)","⑥もしくは⑦に勤務時間を入力してください",null,22,"⑥～⑨","G列-K列","プログラム",null,null,"記入","MSG_CHK_ERR_P(16)","常勤専従は常勤専従人数のみ入力してください","L列 -エラー該当行","L列にエラー表示\n→該当行は集計結果から除外",null,"勤務形態：常勤専従かつ③④⑤に入力があり、⑥以降にも入力がある時"]
[null,null,null,23,"⑤","Ｆ列","プログラム",null,null,"記入","MSG_CHK_ERR_P(18)","常勤兼務・非常勤で常勤専従人数の入力があります","L列 -エラー該当行","L列にエラー表示\n→該当行は集計結果から除外",null,"勤務形態：常勤専従or非常勤の時"]
[null,null,null,24,"⑧","Ｉ列・Ｊ列","プログラム",null,null,"未記入（片方）","MSG_CHK_ERR_P(21)","⑧人数は両方入力してください","L列 -エラー該当行","L列にエラー表示\n→該当行は集計結果から除外",null,"勤務形態：非常勤かつ⑥or⑦で⑧が「ブランク」と「数値あり」の組み合わせで入力時\n"]
[null,null,null,25,"⑨","Ｋ列","プログラム",null,null,"未記入","MSG_CHK_ERR_P(22)","該当職種における勤務時間がわからない場合は、換算数を⑨に入力してください","L列 -エラー該当行","L列にエラー表示\n→該当行は集計結果から除外","福祉は⑧Aに０の入力を許さない","勤務形態：常勤兼務かつ⑧（両方）に0入力時"]
[null,null,null,26,"⑨","Ｋ列","プログラム",null,null,"未記入","MSG_CHK_ERR_P(23)","換算数を⑨に入力してください","L列 -エラー該当行","L列にエラー表示\n→該当行は集計結果から除外","福祉は⑧Aに０の入力を許さない","勤務形態：非常勤の時かつ⑥or⑦入力かつ⑧（両方）に0入力時"]
[null,null,null,27,"⑥⑦","G列-Ｈ列","プログラム",null,null,"未記入","MSG_CHK_ERR_P(26)","⑥もしくは⑦に勤務時間を入力してください","L列 -エラー該当行","L列にエラー表示\n→該当行は集計結果から除外",null,"勤務形態：非常勤かつ⑧両方のみ入力時"]